[Event "Titled Tuesday Blitz August 16 Late 2022"]
[White "Ozalp, Burak"]
[Black "Winterberg, Lukas"]
[WhiteFideId "6314210"]
[BlackFideId "24622702"]
[WhiteElo "1854"]
[BlackElo "2349"]
[Result "1-0"]
[Round "09"]
[TimeControl "180+1"]
[Date "2022.08.18"]
[WhiteClock "0:00:00"]
[BlackClock "0:00:00"]

1. e4 {[%clk 0:00:00]}  c6 {[%clk 0:00:00]} 2. Nc3 {[%clk 0:00:00]}  d5 {[%clk 0:00:00]} 3. Nf3 {[%clk 0:00:00]}  dxe4 {[%clk 0:00:00]} 4. Nxe4 {[%clk 0:00:00]}  Nf6 {[%clk 0:00:00]} 5. Qe2 {[%clk 0:00:00]}  Nxe4 {[%clk 0:00:00]} 6. Qxe4 {[%clk 0:00:00]}  Be6 {[%clk 0:00:00]} 7. d4 {[%clk 0:00:00]}  Nd7 {[%clk 0:00:00]} 8. Bd3 {[%clk 0:00:00]}  g6 {[%clk 0:00:00]} 9. Qh4 {[%clk 0:00:00]}  Bd5 {[%clk 0:00:00]} 10. c3 {[%clk 0:00:00]}  Bxf3 {[%clk 0:00:00]} 11. gxf3 {[%clk 0:00:00]}  Bg7 {[%clk 0:00:00]} 12. Bh6 {[%clk 0:00:00]}  Bxh6 {[%clk 0:00:00]} 13. Qxh6 {[%clk 0:00:00]}  Qa5 {[%clk 0:00:00]} 14. Bc4 {[%clk 0:00:00]}  Qf5 {[%clk 0:00:00]} 15. O-O-O {[%clk 0:00:00]}  O-O-O {[%clk 0:00:00]} 16. Rhe1 {[%clk 0:00:00]}  e6 {[%clk 0:00:00]} 17. Qe3 {[%clk 0:00:00]}  Nf6 {[%clk 0:00:00]} 18. d5 {[%clk 0:00:00]}  Nxd5 {[%clk 0:00:00]} 19. Bxd5 {[%clk 0:00:00]}  cxd5 {[%clk 0:00:00]} 20. Qxa7 {[%clk 0:00:00]}  Qxf3 {[%clk 0:00:00]} 21. Rd4 {[%clk 0:00:00]}  Rhe8 {[%clk 0:00:00]} 22. a3 {[%clk 0:00:00]}  Re7 {[%clk 0:00:00]} 23. Kb1 {[%clk 0:00:00]}  Rc7 {[%clk 0:00:00]} 24. Qa8+ {[%clk 0:00:00]}  Kd7 {[%clk 0:00:00]} 25. Qa4+ {[%clk 0:00:00]}  Ke7 {[%clk 0:00:00]} 26. Qb4+ {[%clk 0:00:00]}  Ke8 {[%clk 0:00:00]} 27. Rf4 {[%clk 0:00:00]}  Qd3+ {[%clk 0:00:00]} 28. Ka1 {[%clk 0:00:00]}  h5 {[%clk 0:00:00]} 29. Rf6 {[%clk 0:00:00]}  Qh3 {[%clk 0:00:00]} 30. Qb6 {[%clk 0:00:00]}  Rdd7 {[%clk 0:00:00]} 31. Qd4 {[%clk 0:00:00]}  Qg4 {[%clk 0:00:00]} 32. Qe3 {[%clk 0:00:00]}  Re7 {[%clk 0:00:00]} 33. Qd3 {[%clk 0:00:00]}  Kf8 {[%clk 0:00:00]} 34. Qe3 {[%clk 0:00:00]}  Kg7 {[%clk 0:00:00]} 35. Rf4 {[%clk 0:00:00]}  Qg5 {[%clk 0:00:00]} 36. Qf3 {[%clk 0:00:00]}  Kh6 {[%clk 0:00:00]} 37. Rb4 {[%clk 0:00:00]}  f5 {[%clk 0:00:00]} 38. Rb6 {[%clk 0:00:00]}  Qf6 {[%clk 0:00:00]} 39. h4 {[%clk 0:00:00]}  Rc6 {[%clk 0:00:00]} 40. Qf4+ {[%clk 0:00:00]}  Kg7 {[%clk 0:00:00]} 41. Rb4 {[%clk 0:00:00]}  e5 {[%clk 0:00:00]} 42. Qd2 {[%clk 0:00:00]}  d4 {[%clk 0:00:00]} 43. cxd4 {[%clk 0:00:00]}  exd4 {[%clk 0:00:00]} 44. Rxe7+ {[%clk 0:00:00]}  Qxe7 {[%clk 0:00:00]} 45. Qxd4+ {[%clk 0:00:00]}  Rf6 {[%clk 0:00:00]} 46. Rc4 {[%clk 0:00:00]}  Kf7 {[%clk 0:00:00]} 47. Rc3 {[%clk 0:00:00]}  Kf8 {[%clk 0:00:00]} 48. Rc8+ {[%clk 0:00:00]}  Kf7 {[%clk 0:00:00]} 49. Qc4+ {[%clk 0:00:00]}  Re6 {[%clk 0:00:00]} 50. Rc7 {[%clk 0:00:00]}  Kf6 {[%clk 0:00:00]} 51. Rxe7 {[%clk 0:00:00]}  Rxe7 {[%clk 0:00:00]} 52. f4 {[%clk 0:00:00]}  Re1+ {[%clk 0:00:00]} 53. Ka2 {[%clk 0:00:00]}  Re7 {[%clk 0:00:00]} 54. Qc5 {[%clk 0:00:00]}  Kf7 {[%clk 0:00:00]} 55. Qd5+ {[%clk 0:00:00]}  Kf6 {[%clk 0:00:00]} 56. a4 {[%clk 0:00:00]}  Re6 {[%clk 0:00:00]} 57. b4 {[%clk 0:00:00]}  Re4 {[%clk 0:00:00]} 58. Kb3 {[%clk 0:00:00]}  Kg7 {[%clk 0:00:00]} 59. Qd7+ {[%clk 0:00:00]}  Kh6 {[%clk 0:00:00]} 60. Qxb7 {[%clk 0:00:00]}  Rxf4 {[%clk 0:00:00]} 61. a5 {[%clk 0:00:00]}  Rxh4 {[%clk 0:00:00]} 62. a6 {[%clk 0:00:00]}  Rh3+ {[%clk 0:00:00]} 63. Kc4 {[%clk 0:00:00]}  Rh1 {[%clk 0:00:00]} 64. a7 {[%clk 0:00:00]}  Ra1 {[%clk 0:00:00]} 65. a8=Q {[%clk 0:00:00]}  Rxa8 {[%clk 0:00:00]} 66. Qxa8 {[%clk 0:00:00]}  h4 {[%clk 0:00:00]} 67. Kd4 {[%clk 0:00:00]}  Kh5 {[%clk 0:00:00]} 68. Ke3 {[%clk 0:00:00]}  g5 {[%clk 0:00:00]} 69. b5 {[%clk 0:00:00]}  Kg4 {[%clk 0:00:00]} 70. b6 {[%clk 0:00:00]}  f4+ {[%clk 0:00:00]} 71. Ke2 {[%clk 0:00:00]}  h3 {[%clk 0:00:00]} 72. Qf3+ {[%clk 0:00:00]}  Kh4 {[%clk 0:00:00]} 73. b7 {[%clk 0:00:00]}  g4 {[%clk 0:00:00]} 74. Qxf4 {[%clk 0:00:00]}  h2 {[%clk 0:00:00]} 75. Qxh2+ {[%clk 0:00:00]}  Kg5 {[%clk 0:00:00]} 76. Qg3 {[%clk 0:00:00]}  Kf5 {[%clk 0:00:00]} 77. Qxg4+ {[%clk 0:00:00]}  Kxg4 {[%clk 0:00:00]} 78. b8=Q {[%clk 0:00:00]}  Kf5 {[%clk 0:00:00]} 79. Qe8 {[%clk 0:00:00]}  Kf6 {[%clk 0:00:00]} 80. Kd3 {[%clk 0:00:00]}  Kg5 {[%clk 0:00:00]} 81. Kd4 {[%clk 0:00:00]}  Kf6 {[%clk 0:00:00]} 82. Kd5 {[%clk 0:00:00]}  Kg5 {[%clk 0:00:00]} 83. Qf8 {[%clk 0:00:00]} 1-0


[Site "https://www.chess.com"]

[Event "Titled Tuesday Blitz August 16 Late 2022"]
[White "Petrovic, Aleksa"]
[Black "Begmuratov, Khumoyun"]
[WhiteFideId "967629"]
[BlackFideId "14210207"]
[WhiteElo "2262"]
[BlackElo "1978"]
[Result "0-1"]
[Round "09"]
[TimeControl "180+1"]
[Date "2022.08.16"]
[WhiteClock "0:00:07"]
[BlackClock "0:01:04"]

1. d4 {[%clk 0:03:00]}  Nf6 {[%clk 0:02:57]} 2. c4 {[%clk 0:03:00]}  g6 {[%clk 0:02:56]} 3. Nc3 {[%clk 0:02:58]}  Bg7 {[%clk 0:02:56]} 4. e4 {[%clk 0:02:57]}  d6 {[%clk 0:02:56]} 5. Be2 {[%clk 0:02:56]}  O-O {[%clk 0:02:56]} 6. Nf3 {[%clk 0:02:56]}  a6 {[%clk 0:02:56]} 7. O-O {[%clk 0:02:54]}  Bg4 {[%clk 0:02:55]} 8. Be3 {[%clk 0:02:51]}  c6 {[%clk 0:02:55]} 9. e5 {[%clk 0:02:37]}  dxe5 {[%clk 0:02:53]} 10. Nxe5 {[%clk 0:02:36]}  Bxe2 {[%clk 0:02:52]} 11. Qxe2 {[%clk 0:02:37]}  Nbd7 {[%clk 0:02:49]} 12. Rad1 {[%clk 0:02:35]}  e6 {[%clk 0:02:47]} 13. Nd3 {[%clk 0:02:17]}  Re8 {[%clk 0:02:42]} 14. h3 {[%clk 0:02:11]}  b5 {[%clk 0:02:30]} 15. Qf3 {[%clk 0:02:02]}  bxc4 {[%clk 0:02:26]} 16. Nb4 {[%clk 0:02:02]}  Qb6 {[%clk 0:02:07]} 17. Nxc6 {[%clk 0:01:20]}  Qxb2 {[%clk 0:02:06]} 18. Bf4 {[%clk 0:01:10]}  Qa3 {[%clk 0:01:41]} 19. Rb1 {[%clk 0:00:55]}  Rac8 {[%clk 0:01:28]} 20. Rb7 {[%clk 0:00:49]}  Rxc6 {[%clk 0:01:24]} 21. Qxc6 {[%clk 0:00:40]}  Qxc3 {[%clk 0:01:23]} 22. Rxd7 {[%clk 0:00:39]}  Nxd7 {[%clk 0:01:22]} 23. Qxd7 {[%clk 0:00:40]}  Rf8 {[%clk 0:01:22]} 24. Rc1 {[%clk 0:00:20]}  Qxd4 {[%clk 0:01:11]} 25. Qxd4 {[%clk 0:00:21]}  Bxd4 {[%clk 0:01:12]} 26. Rxc4 {[%clk 0:00:21]}  e5 {[%clk 0:01:13]} 27. Bh6 {[%clk 0:00:17]}  Rb8 {[%clk 0:01:12]} 28. Kh2 {[%clk 0:00:16]}  Bxf2 {[%clk 0:01:10]} 29. Rc6 {[%clk 0:00:14]}  a5 {[%clk 0:01:09]} 30. Bg5 {[%clk 0:00:13]}  e4 {[%clk 0:01:08]} 31. Rc2 {[%clk 0:00:10]}  e3 {[%clk 0:01:07]} 32. Re2 {[%clk 0:00:10]}  Re8 {[%clk 0:01:05]} 33. g3 {[%clk 0:00:10]}  Kg7 {[%clk 0:01:04]} 34. Kg2 {[%clk 0:00:10]}  h6 {[%clk 0:01:03]} 35. Bf4 {[%clk 0:00:10]}  g5 {[%clk 0:01:04]} 36. Bc7 {[%clk 0:00:09]}  a4 {[%clk 0:01:03]} 37. Bb6 {[%clk 0:00:09]}  f5 {[%clk 0:01:03]} 38. Kf3 {[%clk 0:00:09]}  Kf6 {[%clk 0:01:03]} 39. Bd4+ {[%clk 0:00:08]}  Kg6 {[%clk 0:01:03]} 40. g4 {[%clk 0:00:06]}  fxg4+ {[%clk 0:01:03]} 41. hxg4 {[%clk 0:00:06]}  Rf8+ {[%clk 0:01:02]} 42. Kg2 {[%clk 0:00:06]}  Rf4 {[%clk 0:01:02]} 43. Bxe3 {[%clk 0:00:06]}  Bxe3 {[%clk 0:01:03]} 44. Rxe3 {[%clk 0:00:07]}  Rxg4+ {[%clk 0:01:04]} 45. Kf3 {[%clk 0:00:07]}  Rf4+ {[%clk 0:01:03]} 46. Kg3 {[%clk 0:00:08]}  h5 {[%clk 0:01:03]} 47. Re6+ {[%clk 0:00:06]}  Kf5 {[%clk 0:01:04]} 48. Ra6 {[%clk 0:00:07]}  h4+ {[%clk 0:01:04]} 49. Kh3 {[%clk 0:00:07]}  Rf3+ {[%clk 0:01:03]} 50. Kg2 {[%clk 0:00:07]}  Ra3 {[%clk 0:01:04]} 0-1


[Site "https://www.chess.com"]

[Event "Titled Tuesday Blitz August 16 Late 2022"]
[White "Pires, Marcos Vinicius Torsani"]
[Black "Kaganskiy, Gleb"]
[WhiteFideId "2118939"]
[BlackFideId "4132025"]
[WhiteElo "2273"]
[BlackElo "2165"]
[Result "0-1"]
[Round "09"]
[TimeControl "180+1"]
[Date "2022.08.18"]
[WhiteClock "0:00:00"]
[BlackClock "0:00:00"]

1. e4 {[%clk 0:00:00]}  d6 {[%clk 0:00:00]} 2. d4 {[%clk 0:00:00]}  Nf6 {[%clk 0:00:00]} 3. Nc3 {[%clk 0:00:00]}  e5 {[%clk 0:00:00]} 4. Nf3 {[%clk 0:00:00]}  Nbd7 {[%clk 0:00:00]} 5. Bc4 {[%clk 0:00:00]}  Be7 {[%clk 0:00:00]} 6. O-O {[%clk 0:00:00]}  O-O {[%clk 0:00:00]} 7. Re1 {[%clk 0:00:00]}  c6 {[%clk 0:00:00]} 8. a4 {[%clk 0:00:00]}  a5 {[%clk 0:00:00]} 9. b3 {[%clk 0:00:00]}  exd4 {[%clk 0:00:00]} 10. Nxd4 {[%clk 0:00:00]}  d5 {[%clk 0:00:00]} 11. exd5 {[%clk 0:00:00]}  Bb4 {[%clk 0:00:00]} 12. Bd2 {[%clk 0:00:00]}  Bxc3 {[%clk 0:00:00]} 13. Bxc3 {[%clk 0:00:00]}  cxd5 {[%clk 0:00:00]} 14. Bd3 {[%clk 0:00:00]}  Nc5 {[%clk 0:00:00]} 15. Nf5 {[%clk 0:00:00]}  Nxd3 {[%clk 0:00:00]} 16. Qxd3 {[%clk 0:00:00]}  Bxf5 {[%clk 0:00:00]} 17. Qxf5 {[%clk 0:00:00]}  Ne4 {[%clk 0:00:00]} 18. Qg4 {[%clk 0:00:00]}  Nxc3 {[%clk 0:00:00]} 19. Re3 {[%clk 0:00:00]}  Ne4 {[%clk 0:00:00]} 20. Rh3 {[%clk 0:00:00]}  Qf6 {[%clk 0:00:00]} 21. Rf1 {[%clk 0:00:00]}  Qg6 {[%clk 0:00:00]} 22. Qd1 {[%clk 0:00:00]}  Rad8 {[%clk 0:00:00]} 23. Kh1 {[%clk 0:00:00]}  Rfe8 {[%clk 0:00:00]} 24. f3 {[%clk 0:00:00]}  Nc3 {[%clk 0:00:00]} 25. Qd2 {[%clk 0:00:00]}  Re2 {[%clk 0:00:00]} 0-1


[Site "https://www.chess.com"]

[Event "Titled Tuesday Blitz August 16 Late 2022"]
[White "Przybylski, Wojciech"]
[Black "Aldokhin, Ivan"]
[WhiteFideId "1117599"]
[BlackFideId "24115720"]
[WhiteElo "2133"]
[BlackElo "2246"]
[Result "0-1"]
[Round "09"]
[TimeControl "180+1"]
[Date "2022.08.16"]
[WhiteClock "0:00:01"]
[BlackClock "0:00:05"]

1. e4 {[%clk 0:02:57]}  c5 {[%clk 0:03:00]} 2. Nf3 {[%clk 0:02:56]}  e6 {[%clk 0:03:00]} 3. b3 {[%clk 0:02:56]}  b6 {[%clk 0:02:45]} 4. Bb2 {[%clk 0:02:55]}  Bb7 {[%clk 0:02:46]} 5. Nc3 {[%clk 0:02:52]}  d6 {[%clk 0:02:46]} 6. d4 {[%clk 0:02:52]}  cxd4 {[%clk 0:02:46]} 7. Nxd4 {[%clk 0:02:48]}  Nf6 {[%clk 0:02:44]} 8. Qe2 {[%clk 0:02:45]}  Be7 {[%clk 0:02:39]} 9. O-O-O {[%clk 0:02:44]}  O-O {[%clk 0:02:31]} 10. g4 {[%clk 0:02:39]}  Nc6 {[%clk 0:02:16]} 11. Nf3 {[%clk 0:02:27]}  Rc8 {[%clk 0:01:47]} 12. Kb1 {[%clk 0:02:24]}  a6 {[%clk 0:01:43]} 13. g5 {[%clk 0:02:17]}  Nh5 {[%clk 0:01:41]} 14. Rg1 {[%clk 0:02:04]}  Qc7 {[%clk 0:01:34]} 15. Nd2 {[%clk 0:01:55]}  g6 {[%clk 0:01:23]} 16. Bh3 {[%clk 0:01:38]}  b5 {[%clk 0:01:08]} 17. Nf1 {[%clk 0:01:13]}  b4 {[%clk 0:01:04]} 18. Na4 {[%clk 0:01:12]}  Ne5 {[%clk 0:00:40]} 19. Rc1 {[%clk 0:00:35]}  Bc6 {[%clk 0:00:32]} 20. Qe3 {[%clk 0:00:28]}  Bxa4 {[%clk 0:00:30]} 21. bxa4 {[%clk 0:00:28]}  Nc4 {[%clk 0:00:28]} 22. Qb3 {[%clk 0:00:24]}  Nxb2 {[%clk 0:00:25]} 23. Qxb2 {[%clk 0:00:24]}  Nf4 {[%clk 0:00:20]} 24. Bg4 {[%clk 0:00:21]}  Bxg5 {[%clk 0:00:20]} 25. Bf3 {[%clk 0:00:18]}  Bh6 {[%clk 0:00:19]} 26. Rd1 {[%clk 0:00:17]}  Bg7 {[%clk 0:00:19]} 27. Qb3 {[%clk 0:00:16]}  Qa5 {[%clk 0:00:16]} 28. c4 {[%clk 0:00:04]}  bxc3 {[%clk 0:00:14]} 29. Kc2 {[%clk 0:00:02]}  Rb8 {[%clk 0:00:14]} 30. Qc4 {[%clk 0:00:02]}  Rb4 {[%clk 0:00:10]} 31. Qc6 {[%clk 0:00:02]}  Rb2+ {[%clk 0:00:09]} 32. Kc1 {[%clk 0:00:02]}  Qb4 {[%clk 0:00:08]} 33. Ne3 {[%clk 0:00:02]}  Rxf2 {[%clk 0:00:05]} 34. Rg2 {[%clk 0:00:01]}  Qb2# {[%clk 0:00:05]} 0-1


[Site "https://www.chess.com"]

[Event "Titled Tuesday Blitz August 16 Late 2022"]
[White "Putnam, Liam"]
[Black "Stanisz, Patryk"]
[WhiteFideId "30938279"]
[BlackFideId "1123106"]
[WhiteElo "2035"]
[BlackElo "1833"]
[Result "0-1"]
[Round "09"]
[TimeControl "180+1"]
[Date "2022.08.18"]
[WhiteClock "0:00:00"]
[BlackClock "0:00:00"]

1. d4 {[%clk 0:00:00]}  d5 {[%clk 0:00:00]} 2. Nc3 {[%clk 0:00:00]}  c6 {[%clk 0:00:00]} 3. e4 {[%clk 0:00:00]}  dxe4 {[%clk 0:00:00]} 4. Nxe4 {[%clk 0:00:00]}  Bf5 {[%clk 0:00:00]} 5. Ng3 {[%clk 0:00:00]}  Bg6 {[%clk 0:00:00]} 6. h4 {[%clk 0:00:00]}  h6 {[%clk 0:00:00]} 7. Nf3 {[%clk 0:00:00]}  Nd7 {[%clk 0:00:00]} 8. Bc4 {[%clk 0:00:00]}  e6 {[%clk 0:00:00]} 9. Qe2 {[%clk 0:00:00]}  Ngf6 {[%clk 0:00:00]} 10. Bd2 {[%clk 0:00:00]}  Bd6 {[%clk 0:00:00]} 11. O-O-O {[%clk 0:00:00]}  Qe7 {[%clk 0:00:00]} 12. Ne5 {[%clk 0:00:00]}  Bh7 {[%clk 0:00:00]} 13. Rhe1 {[%clk 0:00:00]}  O-O-O {[%clk 0:00:00]} 14. Qf3 {[%clk 0:00:00]}  Nb6 {[%clk 0:00:00]} 15. Bb3 {[%clk 0:00:00]}  Rhf8 {[%clk 0:00:00]} 16. Ba5 {[%clk 0:00:00]}  Nfd5 {[%clk 0:00:00]} 17. c4 {[%clk 0:00:00]}  Bb4 {[%clk 0:00:00]} 18. Bxb4 {[%clk 0:00:00]}  Nxb4 {[%clk 0:00:00]} 19. a3 {[%clk 0:00:00]}  Na6 {[%clk 0:00:00]} 20. c5 {[%clk 0:00:00]}  Nd5 {[%clk 0:00:00]} 21. Nc4 {[%clk 0:00:00]}  Kb8 {[%clk 0:00:00]} 22. Nh5 {[%clk 0:00:00]}  Qxh4 {[%clk 0:00:00]} 23. Re5 {[%clk 0:00:00]}  Bf5 {[%clk 0:00:00]} 24. g3 {[%clk 0:00:00]}  Qg5+ {[%clk 0:00:00]} 25. Nf4 {[%clk 0:00:00]}  f6 {[%clk 0:00:00]} 26. Rxd5 {[%clk 0:00:00]}  exd5 {[%clk 0:00:00]} 27. Nd6 {[%clk 0:00:00]}  Bg4 {[%clk 0:00:00]} 28. Qe3 {[%clk 0:00:00]}  Bxd1 {[%clk 0:00:00]} 29. Qe7 {[%clk 0:00:00]}  Nc7 {[%clk 0:00:00]} 30. Bxd1 {[%clk 0:00:00]}  f5 {[%clk 0:00:00]} 31. Qe3 {[%clk 0:00:00]}  Qf6 {[%clk 0:00:00]} 32. Qb3 {[%clk 0:00:00]}  Rxd6 {[%clk 0:00:00]} 33. Nh5 {[%clk 0:00:00]}  Qg5+ {[%clk 0:00:00]} 34. f4 {[%clk 0:00:00]}  Qe7 {[%clk 0:00:00]} 35. cxd6 {[%clk 0:00:00]}  Qxd6 {[%clk 0:00:00]} 36. Nxg7 {[%clk 0:00:00]}  Rd8 {[%clk 0:00:00]} 37. Nxf5 {[%clk 0:00:00]}  Qe6 {[%clk 0:00:00]} 38. Ne3 {[%clk 0:00:00]}  Re8 {[%clk 0:00:00]} 39. Kd2 {[%clk 0:00:00]}  Qe4 {[%clk 0:00:00]} 40. Qd3 {[%clk 0:00:00]}  Qe7 {[%clk 0:00:00]} 41. Bf3 {[%clk 0:00:00]}  Nb5 {[%clk 0:00:00]} 42. a4 {[%clk 0:00:00]}  Nd6 {[%clk 0:00:00]} 43. g4 {[%clk 0:00:00]}  Qxe3+ {[%clk 0:00:00]} 44. Qxe3 {[%clk 0:00:00]}  Nc4+ {[%clk 0:00:00]} 0-1


[Site "https://www.chess.com"]

[Event "Titled Tuesday Blitz August 16 Late 2022"]
[White "Riehle, Marco"]
[Black "Rasulov, Vugar"]
[WhiteFideId "12904392"]
[BlackFideId "13402390"]
[WhiteElo "2462"]
[BlackElo "2509"]
[Result "0-1"]
[Round "09"]
[TimeControl "180+1"]
[Date "2022.08.16"]
[WhiteClock "0:01:18"]
[BlackClock "0:01:28"]

1. e4 {[%clk 0:03:00]}  e5 {[%clk 0:03:00]} 2. Nf3 {[%clk 0:02:59]}  Nc6 {[%clk 0:03:00]} 3. Bc4 {[%clk 0:02:59]}  Nf6 {[%clk 0:03:00]} 4. d4 {[%clk 0:02:59]}  exd4 {[%clk 0:02:58]} 5. e5 {[%clk 0:03:00]}  d5 {[%clk 0:02:58]} 6. Bb5 {[%clk 0:03:00]}  Nd7 {[%clk 0:02:58]} 7. O-O {[%clk 0:02:59]}  Be7 {[%clk 0:02:56]} 8. Re1 {[%clk 0:02:56]}  O-O {[%clk 0:02:55]} 9. Bf4 {[%clk 0:02:57]}  Nc5 {[%clk 0:02:46]} 10. Bxc6 {[%clk 0:02:45]}  Ne6 {[%clk 0:02:44]} 11. Nxd4 {[%clk 0:02:46]}  Nxf4 {[%clk 0:02:43]} 12. Ba4 {[%clk 0:02:39]}  c5 {[%clk 0:02:37]} 13. Nf3 {[%clk 0:02:38]}  Bg4 {[%clk 0:02:34]} 14. c3 {[%clk 0:02:35]}  f6 {[%clk 0:02:23]} 15. exf6 {[%clk 0:02:31]}  Rxf6 {[%clk 0:02:20]} 16. Re3 {[%clk 0:02:11]}  Qf8 {[%clk 0:02:16]} 17. Nbd2 {[%clk 0:02:08]}  Bd6 {[%clk 0:02:09]} 18. Qe1 {[%clk 0:02:00]}  a6 {[%clk 0:01:52]} 19. Ne5 {[%clk 0:01:44]}  Bxe5 {[%clk 0:01:42]} 20. Rxe5 {[%clk 0:01:44]}  Nd3 {[%clk 0:01:40]} 21. Qe3 {[%clk 0:01:40]}  Nxe5 {[%clk 0:01:41]} 22. Qxe5 {[%clk 0:01:41]}  Rd8 {[%clk 0:01:39]} 23. f3 {[%clk 0:01:38]}  Bf5 {[%clk 0:01:38]} 24. Bb3 {[%clk 0:01:36]}  c4 {[%clk 0:01:36]} 25. Ba4 {[%clk 0:01:35]}  b5 {[%clk 0:01:35]} 26. Bd1 {[%clk 0:01:35]}  Re6 {[%clk 0:01:35]} 27. Qg3 {[%clk 0:01:36]}  Qc5+ {[%clk 0:01:32]} 28. Kh1 {[%clk 0:01:34]}  Rde8 {[%clk 0:01:32]} 29. Ne4 {[%clk 0:01:20]}  dxe4 {[%clk 0:01:31]} 30. fxe4 {[%clk 0:01:21]}  Bxe4 {[%clk 0:01:30]} 31. Bf3 {[%clk 0:01:18]}  Bxf3 {[%clk 0:01:30]} 32. gxf3 {[%clk 0:01:18]}  Qe5 {[%clk 0:01:28]} 0-1


[Site "https://www.chess.com"]

[Event "Titled Tuesday Blitz August 16 Late 2022"]
[White "Rose, Felix"]
[Black "Thiel, Thomas"]
[WhiteFideId "5105722"]
[BlackFideId "4615964"]
[WhiteElo "2039"]
[BlackElo "2230"]
[Result "1-0"]
[Round "09"]
[TimeControl "180+1"]
[Date "2022.08.18"]
[WhiteClock "0:00:00"]
[BlackClock "0:00:00"]

1. e4 {[%clk 0:00:00]}  d5 {[%clk 0:00:00]} 2. exd5 {[%clk 0:00:00]}  Nf6 {[%clk 0:00:00]} 3. d4 {[%clk 0:00:00]}  Nxd5 {[%clk 0:00:00]} 4. Nf3 {[%clk 0:00:00]}  g6 {[%clk 0:00:00]} 5. c4 {[%clk 0:00:00]}  Nb6 {[%clk 0:00:00]} 6. h3 {[%clk 0:00:00]}  Bg7 {[%clk 0:00:00]} 7. Nc3 {[%clk 0:00:00]}  O-O {[%clk 0:00:00]} 8. Be3 {[%clk 0:00:00]}  Nc6 {[%clk 0:00:00]} 9. Qd2 {[%clk 0:00:00]}  e5 {[%clk 0:00:00]} 10. d5 {[%clk 0:00:00]}  Ne7 {[%clk 0:00:00]} 11. g4 {[%clk 0:00:00]}  f5 {[%clk 0:00:00]} 12. Bh6 {[%clk 0:00:00]}  fxg4 {[%clk 0:00:00]} 13. Bxg7 {[%clk 0:00:00]}  Rxf3 {[%clk 0:00:00]} 14. Bxe5 {[%clk 0:00:00]}  gxh3 {[%clk 0:00:00]} 15. O-O-O {[%clk 0:00:00]}  Qf8 {[%clk 0:00:00]} 16. c5 {[%clk 0:00:00]}  Rxf2 {[%clk 0:00:00]} 17. Qe3 {[%clk 0:00:00]}  Rf3 {[%clk 0:00:00]} 18. Qd2 {[%clk 0:00:00]}  Nd7 {[%clk 0:00:00]} 19. Bxc7 {[%clk 0:00:00]}  Nxc5 {[%clk 0:00:00]} 20. d6 {[%clk 0:00:00]}  Nc6 {[%clk 0:00:00]} 21. Qd5+ {[%clk 0:00:00]}  Ne6 {[%clk 0:00:00]} 22. d7 {[%clk 0:00:00]}  Bxd7 {[%clk 0:00:00]} 23. Qxd7 {[%clk 0:00:00]}  Nxc7 {[%clk 0:00:00]} 24. Qxc7 {[%clk 0:00:00]}  Rc8 {[%clk 0:00:00]} 25. Qxb7 {[%clk 0:00:00]}  Na5 {[%clk 0:00:00]} 26. Qd5+ {[%clk 0:00:00]} 1-0


[Site "https://www.chess.com"]

[Event "Titled Tuesday Blitz August 16 Late 2022"]
[White "Rosenberg, Evan S"]
[Black "Bochnicka, Vladimir"]
[WhiteFideId "2019299"]
[BlackFideId "14943450"]
[WhiteElo "1999"]
[BlackElo "1939"]
[Result "0-1"]
[Round "09"]
[TimeControl "180+1"]
[Date "2022.08.18"]
[WhiteClock "0:00:00"]
[BlackClock "0:00:00"]

1. e4 {[%clk 0:00:00]}  c5 {[%clk 0:00:00]} 2. Nc3 {[%clk 0:00:00]}  Nc6 {[%clk 0:00:00]} 3. f4 {[%clk 0:00:00]}  g6 {[%clk 0:00:00]} 4. Nf3 {[%clk 0:00:00]}  Bg7 {[%clk 0:00:00]} 5. a4 {[%clk 0:00:00]}  d6 {[%clk 0:00:00]} 6. Bb5 {[%clk 0:00:00]}  Bd7 {[%clk 0:00:00]} 7. d3 {[%clk 0:00:00]}  Nd4 {[%clk 0:00:00]} 8. O-O {[%clk 0:00:00]}  a6 {[%clk 0:00:00]} 9. Bxd7+ {[%clk 0:00:00]}  Qxd7 {[%clk 0:00:00]} 10. Nd5 {[%clk 0:00:00]}  Qd8 {[%clk 0:00:00]} 11. f5 {[%clk 0:00:00]}  Nf6 {[%clk 0:00:00]} 12. Nxd4 {[%clk 0:00:00]}  Nxd5 {[%clk 0:00:00]} 13. exd5 {[%clk 0:00:00]}  Bxd4+ {[%clk 0:00:00]} 14. Kh1 {[%clk 0:00:00]}  Qd7 {[%clk 0:00:00]} 15. c3 {[%clk 0:00:00]}  Bf6 {[%clk 0:00:00]} 16. Bh6 {[%clk 0:00:00]}  gxf5 {[%clk 0:00:00]} 17. Qh5 {[%clk 0:00:00]}  Rg8 {[%clk 0:00:00]} 18. Rxf5 {[%clk 0:00:00]}  O-O-O {[%clk 0:00:00]} 19. Raf1 {[%clk 0:00:00]}  Qxa4 {[%clk 0:00:00]} 20. Qxf7 {[%clk 0:00:00]}  Qc2 {[%clk 0:00:00]} 21. R5f2 {[%clk 0:00:00]}  Qxd3 {[%clk 0:00:00]} 22. Bf4 {[%clk 0:00:00]}  Kb8 {[%clk 0:00:00]} 23. Bg3 {[%clk 0:00:00]}  Ka8 {[%clk 0:00:00]} 24. Rf3 {[%clk 0:00:00]}  Qb5 {[%clk 0:00:00]} 25. Qxh7 {[%clk 0:00:00]}  Rxg3 {[%clk 0:00:00]} 26. hxg3 {[%clk 0:00:00]}  Rh8 {[%clk 0:00:00]} 27. Qxh8+ {[%clk 0:00:00]}  Bxh8 {[%clk 0:00:00]} 28. Rf8+ {[%clk 0:00:00]}  Ka7 {[%clk 0:00:00]} 29. R1f2 {[%clk 0:00:00]}  Bf6 {[%clk 0:00:00]} 30. g4 {[%clk 0:00:00]}  Qc4 {[%clk 0:00:00]} 31. g5 {[%clk 0:00:00]}  Qh4+ {[%clk 0:00:00]} 32. Kg1 {[%clk 0:00:00]}  Qxg5 {[%clk 0:00:00]} 33. Rf7 {[%clk 0:00:00]}  Qg8 {[%clk 0:00:00]} 34. R2xf6 {[%clk 0:00:00]}  exf6 {[%clk 0:00:00]} 35. Rxf6 {[%clk 0:00:00]}  Qxd5 {[%clk 0:00:00]} 36. Rf3 {[%clk 0:00:00]}  Qd1+ {[%clk 0:00:00]} 37. Kh2 {[%clk 0:00:00]}  d5 {[%clk 0:00:00]} 38. Kg3 {[%clk 0:00:00]}  d4 {[%clk 0:00:00]} 39. cxd4 {[%clk 0:00:00]}  cxd4 {[%clk 0:00:00]} 40. Kf4 {[%clk 0:00:00]}  d3 {[%clk 0:00:00]} 41. Ke3 {[%clk 0:00:00]}  Qe2+ {[%clk 0:00:00]} 42. Kd4 {[%clk 0:00:00]}  d2 {[%clk 0:00:00]} 43. Rd3 {[%clk 0:00:00]}  d1=N {[%clk 0:00:00]} 44. g3 {[%clk 0:00:00]}  Qxd3+ {[%clk 0:00:00]} 45. Kxd3 {[%clk 0:00:00]}  Nxb2+ {[%clk 0:00:00]} 46. Kd4 {[%clk 0:00:00]}  Nd1 {[%clk 0:00:00]} 47. g4 {[%clk 0:00:00]}  Nf2 {[%clk 0:00:00]} 48. g5 {[%clk 0:00:00]}  Nh3 {[%clk 0:00:00]} 49. g6 {[%clk 0:00:00]}  Nf4 {[%clk 0:00:00]} 0-1


[Site "https://www.chess.com"]